Cogmind - Beta 16.1 @@@ ROGUE MODE // 2026.03.01 @ 09:31:17 Player: C0-2MO Result: Destroyed by H-71 Marshal with Heavy Mass Driver Performance ------------- Evolutions (5) 2500 Regions Visited (23) 4600 Robots Destroyed (371) 1855 Value Destroyed (17543) 17543 Prototype IDs (32) 640 Alien Tech Used (0) 0 Bonus (7648) 7648 TOTAL SCORE: 34786 Bonus ------- High Alert Combat Kills 2680 Follower Combat Kills 2727 Entered Garrisons 600 Network Hubs Disabled 200 Met Data Miner 300 Met Imprinter 300 Acquired ECA 300 Built Enhanced Grunts 300 Met R17 at Cetus 500 Friendly Fire -259 Cogmind --------- Core Integrity 0/1000 Matter 284/300 Energy 94/100 System Corruption 16% Temperature Cool (0) Movement Core (50) Location -5/Hub_04(d) Parts ------- > --- POWER (1) -------- (None) > --- PROPULSION (4) --- (None) > --- UTILITY (6) ------ (None) > --- WEAPON (6) ------- (None) > --- INVENTORY (5) ---- Improved Coolant Injector Improved Transmission Jammer Long-range Tractor Beam Gauss Rifle Advanced KE Penetrator Peak State ------------ > --- POWER ------------ Quantum Reactor > --- PROPULSION ------- Improved Medium Treads Armored Medium Treads Centrium Heavy Treads > --- UTILITY ---------- Experimental Heat Sink Huge Storage Unit 0b10 Decoder Chip [Scout] Improved Target Analyzer Core Analyzer Centrium Medium Armor Plating > --- WEAPON ----------- Gauss Rifle Gauss Rifle KE Penetrator KE Penetrator Advanced KE Penetrator Improved Remote Datajack > --- INVENTORY -------- Improved Treads Improved Medium Treads Experimental Heat Sink Improved Coolant Injector High-capacity Storage Unit Tactical Coordination Suite Improved Target Analyzer Matter Filter Improved Weapon Cycler Improved Transmission Jammer Medium Reactive Plating Medium Reactive Plating Graphene Brace Tractor Beam Long-range Tractor Beam Advanced Trap Extractor Mapping Drone Bay Gauss Rifle KE Penetrator KE Penetrator KE Penetrator Advanced KE Penetrator Heavy Flak Cannon Katana CR-A16's Pointy Stick [Rating: 115] Favorites ----------- Power Improved Deuterium Engine Engine Improved Deuterium Engine Power Core Micro Fission Core Reactor Quantum Reactor Propulsion Improved Heavy Treads Treads Improved Heavy Treads Leg Improved Titanium Leg Wheel Armored Huge Wheel Utility Advanced Targeting Computer Device Advanced Heat Sink Storage High-capacity Storage Unit Processor Advanced Targeting Computer Hackware Authchip [R/Combat] Protection Hardened Light Armor Plating Weapon Heavy Machine Gun Energy Gun EM Shotgun Energy Cannon Advanced Beam Cannon Ballistic Gun Heavy Machine Gun Ballistic Cannon Mini Assault Cannon Launcher Rocket Launcher Special Weapon Improved Remote Datajack Impact Weapon Hammer Slashing Weapon Katana Special Melee Weapon Datajack Build | -11 -10 -9 -9 -8 -8 -8 -7 -7 -7 -7 -7 -6 -6 -6 -6 -6 -6 -5 -5 -5 -5 -5 -5 ------- Run | Yrd Mat Mat Min Mat Gar Mat Fac Gar Fac Low Dat Pro Fac Gar Fac Low Zio Pro Fac Ext Cet Arc Hub Slots Evolved 10 | . . 2 . 2 . . 2 . . . . . 2 . . . . . 2 . . . . Power . | . . . . . . . . . . . . . . . . . . . . . . . . Propulsion 2 | . . . . . . . 1 . . . . . 1 . . . . . . . . . . Utility 4 | . . 1 . . . . 1 . . . . . . . . . . . 2 . . . . Weapon 4 | . . 1 . 2 . . . . . . . . 1 . . . . . . . . . . Parts Attached 185 | 7 11 19 2 1 16 9 6 16 2 2 . . 3 19 1 . . 6 47 3 5 4 6 Power 14 | 1 1 2 . . . . . 3 1 . . . . 1 . . . 1 3 . 1 . . Engine 5 | 1 . 2 . . . . . . . . . . . 1 . . . 1 . . . . . Core 7 | . 1 . . . . . . 2 1 . . . . . . . . . 3 . . . . Reactor 2 | . . . . . . . . 1 . . . . . . . . . . . . 1 . . Propulsion 35 | 2 2 1 2 . 3 3 2 4 . . . . 1 3 . . . . 10 1 1 . . Treads 30 | 2 2 1 2 . 3 1 2 3 . . . . . 3 . . . . 9 1 1 . . Leg 4 | . . . . . . 2 . 1 . . . . . . . . . . 1 . . . . Wheel 1 | . . . . . . . . . . . . . 1 . . . . . . . . . . Hover . | . . . . . . . . . . . . . . . . . . . . . . . . Flight . | . . . . . . . . . . . . . . . . . . . . . . . . Utility 49 | 2 4 2 . . 4 2 2 4 . 1 . . . 2 . . . 2 17 1 1 3 2 Device 18 | 1 . 1 . . . . 1 4 . 1 . . . 1 . . . 1 4 . . 2 2 Storage 6 | 1 3 . . . . 1 . . . . . . . . . . . . 1 . . . . Processor 9 | . 1 . . . 2 1 . . . . . . . 1 . . . . 4 . . . . Hackware 6 | . . . . . . . . . . . . . . . . . . . 5 . . 1 . Protection 10 | . . 1 . . 2 . 1 . . . . . . . . . . 1 3 1 1 . . Artifact . | . . . . . . . . . . . . . . . . . . . . . . . . Weapon 87 | 2 4 14 . 1 9 4 2 5 1 1 . . 2 13 1 . . 3 17 1 2 1 4 Energy Gun 4 | . . 4 . . . . . . . . . . . . . . . . . . . . . Energy Cannon 1 | . . 1 . . . . . . . . . . . . . . . . . . . . . Ballistic Gun 72 | 2 3 7 . 1 9 2 2 4 1 1 . . 2 12 1 . . 3 14 1 2 1 4 Ballistic Cannon 5 | . . . . . . 2 . . . . . . . 1 . . . . 2 . . . . Launcher 1 | . . 1 . . . . . . . . . . . . . . . . . . . . . Special Weapon 1 | . . . . . . . . . . . . . . . . . . . 1 . . . . Impact Weapon 1 | . 1 . . . . . . . . . . . . . . . . . . . . . . Slashing Weapon 1 | . . . . . . . . 1 . . . . . . . . . . . . . . . Piercing Weapon . | . . . . . . . . . . . . . . . . . . . . . . . . Special Melee Weapon 1 | . . 1 . . . . . . . . . . . . . . . . . . . . . Unidentified Prototypes 8 | . . 2 . . . 1 . 1 . . . . . . . . . . 1 . 3 . . Corrupted Parts 1 | . . . . . . . . . . . . . . . . . . . . . 1 . . System Corruption 12 | . . . . . . . . . . . . . . . . . . . . . 12 . . Parts Lost 77 | . . 3 7 . 13 3 . 4 . . . . 1 9 2 . . 2 24 4 . . 5 Power 8 | . . 1 1 . . . . 1 . . . . . 1 . . . 1 2 . . . 1 Propulsion 18 | . . 1 2 . 3 . . 2 . . . . . 2 . . . . 6 1 . . 1 Utility 7 | . . . 1 . 2 . . . . . . . . . . . . 1 2 1 . . . Weapon 44 | . . 1 3 . 8 3 . 1 . . . . 1 6 2 . . . 14 2 . . 3 Highest Loss Streak 7 | . . 1 7 . 3 1 . 1 . . . . 1 5 1 . . 2 5 2 . . 5 To Critical Strikes . | . . . . . . . . . . . . . . . . . . . . . . . . Average Backups 17 | 1 7 14 14 9 10 12 14 15 17 17 17 17 15 15 17 16 18 18 22 23 24 24 23 Power . | . 1 . . . . . . . . . . . . . . . . . . . . . . Propulsion 2 | . 1 2 1 . 2 4 4 1 4 4 4 4 3 2 4 4 4 3 1 1 2 2 1 Utility 9 | . . 2 4 4 3 4 6 7 7 7 7 7 7 9 11 11 12 12 16 14 14 14 12 Weapon 4 | . 4 8 7 4 3 2 2 5 6 6 6 6 4 3 2 1 1 3 3 6 7 7 8 Tool/Special . | . . . . . . . . . . . . . . . . . . . . . . . . Unused Backups 35 | . 3 4 . . . 2 2 5 . . . . . 2 . . 1 2 3 . 1 . 10 Power 1 | . 1 . . . . . . . . . . . . . . . . . . . . . . Propulsion 8 | . . . . . . 2 1 3 . . . . . . . . . 1 . . . . 1 Utility 14 | . 1 . . . . . 1 . . . . . . 1 . . 1 1 3 . . . 6 Weapon 10 | . 1 3 . . . . . 1 . . . . . 1 . . . . . . 1 . 3 Tool/Special 2 | . . 1 . . . . . 1 . . . . . . . . . . . . . . . Average Slot Usage (%) 91 | . 100 97 91 72 86 89 82 96 92 92 92 92 92 85 85 86 86 85 92 95 97 89 88 Engine 2 | . 6 10 10 . . . . . . . . . . 2 6 6 6 6 . . . . . Core 2 | . 7 . . . . . . 3 7 7 7 7 6 3 . . . . 4 5 4 . . Treads 17 | . 28 21 21 18 16 14 15 19 15 15 15 15 15 12 13 13 13 13 15 23 21 17 15 Device 4 | . 3 . . . . . 3 6 7 7 7 7 6 6 6 6 6 4 3 4 5 5 10 Storage 7 | . 14 11 11 9 9 9 7 7 7 7 7 7 6 6 6 6 6 6 5 5 5 5 4 Processor 15 | . 10 11 11 9 13 18 15 15 15 15 15 15 13 13 13 13 13 13 21 22 17 17 16 Protection 1 | . . 9 9 . 3 . 1 . . . . . . . . . . 1 1 . 5 . . Ballistic Gun 33 | . 27 25 27 36 40 42 24 32 33 38 38 38 39 38 39 40 40 39 27 24 27 29 27 Slashing Weapon 1 | . . . . . . . . 4 4 . . . . . . . . . 3 4 . 4 4 Peak Build Rating 115 | 7 12 21 18 14 18 34 39 60 60 61 61 61 66 82 74 74 76 79 87 92 115 115 112 Average Rating 56 | 5 9 17 16 13 14 21 34 47 59 60 61 61 62 72 73 74 75 73 80 80 99 103 104 On Entrance 52 | . 7 12 18 9 14 16 34 36 60 60 61 61 61 58 72 74 74 76 71 78 88 115 109 Avg Prop Armor Cover (%) 10 | 26 . . . . . . . 4 . . . . 12 12 . . . . 9 . . . . Naked Turns 28 | . . . . . . . . . . . . . . . . . . . . . . . 28 Heaviest Build 136 | 14 29 42 41 33 36 37 41 64 66 66 66 66 69 77 76 76 76 90 129 131 135 136 129 Greatest Support 150 | 40 46 46 46 46 46 42 62 102 102 102 102 102 124 150 150 150 150 150 150 113 137 137 137 Greatest Overweight (x) 4 | . . . 1 . 1 1 . 1 . . . . 2 2 . . . . 4 1 1 . . Average Overweight (x) . | . . . . . . . . . . . . . 1 . . . . . 1 . . . . Largest Inventory Capacity 25 | 8 20 15 15 15 15 15 15 20 20 20 20 20 20 20 20 20 20 20 25 25 25 25 25 Average Capacity 19 | 7 10 15 15 15 15 15 15 15 20 20 20 20 20 20 20 20 20 20 24 25 25 25 24 Most Carried 25 | 2 11 15 15 11 14 15 15 20 20 20 20 20 20 20 19 17 20 20 25 25 25 25 25 Average Carried 17 | 1 7 14 14 8 10 12 14 15 20 20 20 20 19 17 18 17 19 19 22 23 24 24 23 Final Capacity 25 | 8 15 15 15 15 15 15 15 20 20 20 20 20 20 20 20 20 20 20 25 25 25 25 5 Final Carried 25 | 2 11 15 12 8 10 15 14 20 20 20 20 20 19 18 17 17 20 20 23 24 25 23 5 Class Distribution -------------------- 46% | Scavenger-Executioner 27% | Scavenger-Gunner 11% | Gunner 7% | Mutant 3% | Scientist-Gunner Dominant Class ---------------- Mutant | -10/Materials Gunner | -9/Materials Gunner | -9/Mines Gunner | -8/Materials Scavenger-Gunner | -8/Garrison Scavenger-Gunner | -8/Materials Scientist-Gunner | -7/Factory Scavenger-Gunner | -7/Garrison Scavenger-Gunner | -7/Factory Scavenger-Gunner | -7/Lower Caves Scavenger-Gunner | -7/Data Miner Scavenger-Gunner | -6/Proximity Caves Scavenger-Executioner | -6/Factory Scavenger-Executioner | -6/Garrison Scavenger-Executioner | -6/Factory Scavenger-Executioner | -6/Lower Caves Scavenger-Executioner | -6/Zion Scavenger-Executioner | -5/Proximity Caves Scavenger-Executioner | -5/Factory Scavenger-Gunner | -5/Extension Scavenger-Executioner | -5/Cetus Scavenger-Executioner | -5/Archives Scavenger-Executioner | -5/Hub_04(d) Resources | -11 -10 -9 -9 -8 -8 -8 -7 -7 -7 -7 -7 -6 -6 -6 -6 -6 -6 -5 -5 -5 -5 -5 -5 ----------- Run | Yrd Mat Mat Min Mat Gar Mat Fac Gar Fac Low Dat Pro Fac Gar Fac Low Zio Pro Fac Ext Cet Arc Hub Matter Collected 12279 | 314 365 936 28 . 1073 945 271 845 . 69 . 19 23 1442 507 . 46 765 2938 671 206 178 638 Remotely 1535 | . . . . . . . . . . . . . . 269 . . . 280 439 . . . 547 Salvage Created 17866 | 145 561 2160 . . 1369 1355 338 1633 30 . . . . 1318 821 . . 686 4154 1237 173 411 1475 Parts 913 | 10 29 153 . . 77 65 23 64 3 . . . . 58 31 . . 28 220 54 4 41 53 Haulers Intercepted 15 | . 1 5 . . . 3 . . . . . . . . 1 . . . 3 . . . 2 Recyclers Shooed 15 | 1 1 1 . . . 3 1 . . . . . . . . . . . 8 . . . . Parts Field Recycled . | . . . . . . . . . . . . . . . . . . . . . . . . Retrieved Matter . | . . . . . . . . . . . . . . . . . . . . . . . . Parts Self-Destructed 52 | . . . . . . . . . . 9 . 15 . . . . 1 27 . . . . . Prevented . | . . . . . . . . . . . . . . . . . . . . . . . . Parts Restored . | . . . . . . . . . . . . . . . . . . . . . . . . Kills | -11 -10 -9 -9 -8 -8 -8 -7 -7 -7 -7 -7 -6 -6 -6 -6 -6 -6 -5 -5 -5 -5 -5 -5 ------- Run | Yrd Mat Mat Min Mat Gar Mat Fac Gar Fac Low Dat Pro Fac Gar Fac Low Zio Pro Fac Ext Cet Arc Hub Combat Hostiles Destroyed 281 | . 11 46 . . 31 25 5 23 . . . . . 27 14 . . 15 54 12 3 1 14 Guns 260 | . 11 32 . . 31 25 3 23 . . . . . 27 14 . . 15 53 12 3 1 10 Cannons 2 | . . . . . . . 1 . . . . . . . . . . . 1 . . . . AOE 16 | . . 13 . . . . 1 . . . . . . . . . . . . . . . 2 Classes Destroyed 20 | 2 4 6 . . 3 2 . . . . . . . . . . . 1 2 . . . . Worker 14 | . . 1 . . . . 1 . 1 . . . . . . . . . 6 1 . . 4 Builder 10 | . . 1 . . . . . . . . . . . . 1 . . . 4 1 . . 3 Tunneler 5 | 2 . . . . . . . . . . . . . . . . . . 1 . . . 2 Hauler 15 | . 1 5 . . . 3 . . . . . . . . 1 . . . 3 . . . 2 Recycler 13 | 1 . 3 . . . 1 1 . . . . . . . . . . . 4 2 . . 1 Mechanic 3 | . . 2 . . . . . . . . . . . . . . . . . 1 . . . Operator 14 | . 1 1 . . . 1 1 . . . . . . . . . . . 1 . . 9 . Watcher 16 | . 1 5 . . . 2 1 . . . . . . . . . . . 5 2 . . . Swarmer 55 | . . 20 . . 8 2 . 12 . . . . . 3 3 . . 2 5 . . . . Saboteur 1 | . . . . . . . . . . . . . . . . . . . 1 . . . . Grunt 114 | . 11 14 . . 15 15 3 5 . . . . . 9 6 . . 8 15 6 . . 7 Brawler 6 | . . . . . . 1 1 1 . . . . . 1 1 . . . . . . . 1 Duelist 10 | . . 2 . . . 1 1 1 . . . . . 1 . . . . 4 . . . . Protector 2 | . . . . . . 1 . . . . . . . . . . . . . . . . 1 Sentry 54 | . . 10 . . 4 5 . 1 . . . . . 10 4 . . 2 9 5 . 1 3 Specialist 2 | . . . . . 2 . . . . . . . . . . . . . . . . . . Hunter 15 | . . . . . 1 . . 3 . . . . . 1 . . . 2 8 . . . . Programmer 13 | . . . . . 1 . . . . . . . . 2 . . . . 10 . . . . Heavy 2 | . . . . . . . . . . . . . . . . . . . 2 . . . . Behemoth 2 | . . . . . . . . . . . . . . . . . . 1 . 1 . . . Cetus Guard 3 | . . . . . . . . . . . . . . . . . . . . . 3 . . Lightning 2 | . . . . . . . . . . . . . . . . . . . . . . . 2 Best Kill Streak 18 | 3 6 8 . . 5 6 5 11 1 . . . . 7 5 . . 9 8 4 3 5 18 Combat Bots Only 11 | . 6 7 . . 5 6 3 11 . . . . . 7 3 . . 9 4 3 3 1 9 Max Kills in Single Turn 9 | 1 1 3 . . 3 2 2 2 1 . . . . 2 2 . . 2 2 2 1 1 9 Gunslinging 2 | . . 1 . . 2 1 . 1 . . . . . 1 1 . . 1 1 1 . . 1 Exploded 3 | . . 3 . . . . 1 . . . . . . . . . . . . . . . 2 Melee . | . . . . . . . . . . . . . . . . . . . . . . . . Uniques/NPCs Destroyed . | . . . . . . . . . . . . . . . . . . . . . . . . Combat | -11 -10 -9 -9 -8 -8 -8 -7 -7 -7 -7 -7 -6 -6 -6 -6 -6 -6 -5 -5 -5 -5 -5 -5 -------- Run | Yrd Mat Mat Min Mat Gar Mat Fac Gar Fac Low Dat Pro Fac Gar Fac Low Zio Pro Fac Ext Cet Arc Hub Hostile Shots Fired 1584 | . 70 117 60 . 145 77 5 92 . 2 . 10 24 339 96 . . 74 339 38 7 2 87 Missed 443 | . 16 44 17 . 30 22 . 29 . 1 . 4 5 107 34 . . 12 84 10 2 1 25 Hits 1141 | . 54 73 43 . 115 55 5 63 . 1 . 6 19 232 62 . . 62 255 28 5 1 62 Melee 14 | . . 5 5 . . . . . . . . . . 1 . . . . 1 . . . 2 Projectile 1127 | . 54 68 38 . 115 55 5 63 . 1 . 6 19 231 62 . . 62 254 28 5 1 60 AOE 13 | . . . 10 . . 1 . . . . . . . . . . . . 2 . . . . Critical Strikes 46 | . 2 2 . . 8 1 1 2 . 1 . 1 . 7 . . . 3 6 4 1 . 7 Part Disruptions 1 | . . . . . . . . . . . . . . . . . . . . . . . 1 Damage Taken 19830 | . 691 1057 892 . 1756 926 108 881 . 19 . 66 143 3122 686 . . 1295 5582 634 142 21 1809 Core 2470 | . 209 110 103 . 293 216 14 89 . . . . 5 178 56 . . 131 500 124 . . 442 Absorbed by Shields 93 | . . . . . 4 . . . . . . . . . . . . . . 89 . . . Reduced by Siege Mode 368 | . . . . . . . . . . . . . . 231 5 . . 37 95 . . . . Ignored by Resistances 206 | . . . . . . . . . . . . . . . . . . . 190 16 . . . Regen/Repaired (Parts) 1900 | . . 209 . . . 154 . . . . . . . . . . 1537 . . . . . . Core Remaining (%) 51 | 100 16 . 46 . . 7 . . . . . 85 . . . . . 56 . . . . . Volleys Fired 641 | 11 54 99 6 . 67 55 10 31 . 1 . 1 . 61 22 . . 25 119 39 7 4 29 Largest 6 | 2 2 3 3 . 5 5 5 5 . 5 . 5 . 6 6 . . 6 6 5 5 6 5 Hottest 193 | 40 40 135 69 . 114 117 154 139 . 131 . 131 . 180 167 . . 167 193 150 157 190 167 Shots Fired 2602 | 22 108 251 10 . 285 261 46 143 . 5 . 5 . 285 125 . . 150 584 137 34 23 128 Gun 2547 | 22 108 241 9 . 285 260 27 143 . 5 . 5 . 285 125 . . 150 567 130 34 23 128 Cannon 36 | . . . . . . 1 19 . . . . . . . . . . . 16 . . . . Launcher 11 | . . 10 1 . . . . . . . . . . . . . . . . . . . . Special 8 | . . . . . . . . . . . . . . . . . . . 1 7 . . . Kinetic 2504 | 22 108 162 9 . 285 261 46 143 . 5 . 5 . 285 125 . . 150 583 130 34 23 128 Thermal . | . . . . . . . . . . . . . . . . . . . . . . . . Explosive 11 | . . 10 1 . . . . . . . . . . . . . . . . . . . . Electromagnetic 79 | . . 79 . . . . . . . . . . . . . . . . . . . . . Robot Hit Streak 55 | 7 11 16 6 . 26 12 9 14 . 12 . 8 . 35 18 . . 20 22 55 12 5 13 Robot Miss Streak 7 | 2 4 4 1 . 4 7 4 5 . 1 . . . 4 3 . . 5 4 3 3 4 4 Penetration Max 1 | . . . . . . . 1 1 . . . . . . . . . . 1 1 1 1 1 Secondary Targets 69 | . 1 5 . . 12 8 . 9 . . . . . 9 3 . . 6 10 2 . . 4 Max Gunslinging Chain 2 | . 1 1 . . 2 1 . 2 . . . . . 2 1 . . 2 1 1 . . 1 Shots Hit Robots 1831 | 13 72 176 7 . 207 167 23 127 1 4 . 5 . 190 87 . . 125 391 114 23 25 74 Core Hits 948 | 4 30 104 4 . 81 87 16 56 1 . . . . 90 64 . . 92 196 49 12 13 49 Critical Kills 29 | . . . . . 1 1 . 2 . . . . . 3 1 . . 3 9 3 1 1 4 Critical Parts Destroyed 61 | . . 1 . . 4 10 2 3 . . . . . 4 3 . . 2 17 4 2 2 7 Critical Strikes 103 | . . 1 . . 5 12 2 7 . . . . . 8 4 . . 6 32 9 3 3 11 Destroy 97 | . . 1 . . 5 12 2 5 . . . . . 8 4 . . 6 30 7 3 3 11 Blast 1 | . . . . . . . . . . . . . . . . . . . 1 . . . . Sever 5 | . . . . . . . . 2 . . . . . . . . . . 1 2 . . . Melee Attacks 170 | . 1 4 . . 26 . . 60 2 . . . . 11 . . . 1 34 11 . 11 9 Impact 31 | . 1 4 . . 26 . . . . . . . . . . . . . . . . . . Slashing 139 | . . . . . . . . 60 2 . . . . 11 . . . 1 34 11 . 11 9 Piercing . | . . . . . . . . . . . . . . . . . . . . . . . . Sneak Attacks 26 | . . . . . . . . . 1 . . . . . . . . . 7 6 . 10 2 Combat Hostiles . | . . . . . . . . . . . . . . . . . . . . . . . . Follow-up Attacks . | . . . . . . . . . . . . . . . . . . . . . . . . Damage Inflicted 39799 | 156 803 3703 156 . 2707 2576 1148 3765 74 78 . 89 . 4074 1557 . . 2480 8683 2819 562 1244 3125 Guns 31508 | 153 794 2608 110 . 2707 2576 338 1858 . 78 . 89 . 4074 1557 . . 2480 7169 2290 562 450 1615 Cannons 516 | . . . . . . . 284 . . . . . . . . . . . 232 . . . . Explosions 3442 | . . 1046 46 . . . 517 . . . . . . . . . . . 449 . . . 1384 Melee 4140 | . . . . . . . . 1907 74 . . . . . . . . . 731 525 . 777 126 Ramming 193 | 3 9 49 . . . . 9 . . . . . . . . . . . 102 4 . 17 . Kinetic 30977 | 153 794 1561 110 . 2707 2576 622 1858 . 78 . 89 . 4074 1557 . . 2480 7401 2290 562 450 1615 Thermal 449 | . . . . . . . . . . . . . . . . . . . 449 . . . . Explosive 1609 | . . 1046 46 . . . 517 . . . . . . . . . . . . . . . . Electromagnetic 2431 | . . 1047 . . . . . . . . . . . . . . . . . . . . 1384 Impact . | . . . . . . . . . . . . . . . . . . . . . . . . Slashing 4140 | . . . . . . . . 1907 74 . . . . . . . . . 731 525 . 777 126 Piercing . | . . . . . . . . . . . . . . . . . . . . . . . . Highest Corruption 17 | . . . . . 1 1 . . . . . . . 2 2 2 2 . 10 5 17 17 16 Average Corruption 4 | . . . . . 1 1 . . . . . . . 1 2 2 2 . 5 5 13 9 6 Corruption Purged 17 | . . . . . . . . . . . . . . . . . . . 5 . . 12 . Corruption Blocked . | . . . . . . . . . . . . . . . . . . . . . . . . Effects 200 | . . . . . 5 12 . . . . . . . 25 8 . 1 . 70 24 17 12 26 Message Errors 48 | . . . . . 2 5 . . . . . . . 6 2 . 1 . 15 4 4 5 4 Matter Fused 42 | . . . . . 2 3 . . . . . . . 4 3 . . . 16 7 1 1 5 Heat Flow Errors 19 | . . . . . . . . . . . . . . 1 1 . . . 10 2 . 1 4 Energy Discharges 23 | . . . . . . 1 . . . . . . . 3 2 . . . 4 4 5 1 3 Parts Rejected 1 | . . . . . . . . . . . . . . . . . . . . . 1 . . Parts Fused 2 | . . . . . . . . . . . . . . . . . . . 2 . . . . Data Loss (minor) 21 | . . . . . 1 1 . . . . . . . 5 . . . . 9 1 . 2 2 Data Loss (major) 12 | . . . . . . . . . . . . . . 3 . . . . 3 1 2 . 3 Misfires 13 | . . . . . . 2 . . . . . . . 2 . . . . 5 2 2 . . Alerts 7 | . . . . . . . . . . . . . . . . . . . 2 2 . 1 2 Weapon Failures 12 | . . . . . . . . . . . . . . 1 . . . . 4 1 2 1 3 Overload Shots . | . . . . . . . . . . . . . . . . . . . . . . . . Overflow Damage 777 | . . 16 . . . . 49 60 . . . . . . . . . . 280 185 . 42 145 Projectiles 20 | . . . . . . . 20 . . . . . . . . . . . . . . . . Explosions 344 | . . 16 . . . . 29 . . . . . . . . . . . 192 . . . 107 Melee 413 | . . . . . . . . 60 . . . . . . . . . . 88 185 . 42 38 Knockbacks 6 | . . . . . . . 4 . . . . . . . . . . . 2 . . . . Impact 3 | . . . . . . . 1 . . . . . . . . . . . 2 . . . . Kinetic 2 | . . . . . . . 2 . . . . . . . . . . . . . . . . Secondary 1 | . . . . . . . 1 . . . . . . . . . . . . . . . . Self-Inflicted Damage 230 | . . 83 . . . . 36 . . . . . . . . . . . 6 . . . 105 Shots 6 | . . 4 . . . . 1 . . . . . . . . . . . . . . . 1 Rammed 21 | 1 4 5 . . . . 1 . . . . . . . 1 . . . 8 . . 1 . Targets Rammed 23 | 1 4 5 . . . . 1 . . . . . . . 1 . . . 9 1 . 1 . Kicked . | . . . . . . . . . . . . . . . . . . . . . . . . Crushed 2 | . . . . . . . . . . . . . . . . . . . 1 1 . . . Highest Temperature 502 | . 44 249 18 . 381 147 284 381 . 24 . . . 502 248 . . 200 315 218 . 99 234 Average Temperature 71 | . 9 53 9 . 90 39 104 109 . 24 . . . 114 30 . . 65 88 38 . 50 53 Received Heat Transfer 5360 | . 426 243 . . 882 450 63 258 . 27 . 18 24 1338 210 . . 378 633 109 . . 301 Effects 7 | . . . . . 1 . . 1 . . . . . 5 . . . . . . . . . Shutdowns 2 | . . . . . . . . . . . . . . 2 . . . . . . . . . Matter Decay 1 | . . . . . . . . . . . . . . 1 . . . . . . . . . Short Circuit 2 | . . . . . 1 . . . . . . . . 1 . . . . . . . . . Damage (minor) 2 | . . . . . . . . 1 . . . . . 1 . . . . . . . . . Siege Activations 6 | . . . . . . . . . . . . . . 2 1 . . 1 2 . . . . Total Turns 103 | . . . . . . . . . . . . . . 46 9 . . 18 30 . . . . Longest Duration 30 | . . . . . . . . . . . . . . 30 9 . . 18 18 . . . . Martial Activations . | . . . . . . . . . . . . . . . . . . . . . . . . Shielding Activations . | . . . . . . . . . . . . . . . . . . . . . . . . Robots Disrupted . | . . . . . . . . . . . . . . . . . . . . . . . . Combat Hostiles . | . . . . . . . . . . . . . . . . . . . . . . . . Robots Corrupted 5 | . . 1 . . . . . . . . . . . . . . . . . . . . 4 Combat Hostiles 3 | . . 1 . . . . . . . . . . . . . . . . . . . . 2 Parts Fried 17 | . . 6 . . . . . . . . . . . . . . . . . 2 . . 9 Impact Corruptions . | . . . . . . . . . . . . . . . . . . . . . . . . Robots Melted . | . . . . . . . . . . . . . . . . . . . . . . . . Combat Hostiles . | . . . . . . . . . . . . . . . . . . . . . . . . Parts Melted 1 | . . . . . . . . . . . . . . 1 . . . . . . . . . Heat Transferred 300 | . . . . . . . . . . . . . . . . . . . 300 . . . . Parts Sabotaged . | . . . . . . . . . . . . . . . . . . . . . . . . Parts Stolen . | . . . . . . . . . . . . . . . . . . . . . . . . Parts Stripped . | . . . . . . . . . . . . . . . . . . . . . . . . Power Chain Reactions . | . . . . . . . . . . . . . . . . . . . . . . . . Alert | -11 -10 -9 -9 -8 -8 -8 -7 -7 -7 -7 -7 -6 -6 -6 -6 -6 -6 -5 -5 -5 -5 -5 -5 ------- Run | Yrd Mat Mat Min Mat Gar Mat Fac Gar Fac Low Dat Pro Fac Gar Fac Low Zio Pro Fac Ext Cet Arc Hub Maximum Alert Level 4 | . . 3 1 . 4 3 2 4 2 . . . 1 4 3 . . . 4 3 2 1 3 Low Security (%) 29 | 100 100 9 15 100 22 . . . . . . . 95 11 . . . . 67 . . 6 67 Level 1 14 | . . 11 84 . 16 . 77 16 . . . . 4 6 . . . . 12 . 10 93 6 Level 2 29 | . . 56 . . 27 56 22 18 100 . . . . 24 9 . . . 9 88 89 . 3 Level 3 21 | . . 21 . . 30 43 . 46 . . . . . 28 90 . . . 8 11 . . 22 Level 4 5 | . . . . . 2 . . 17 . . . . . 30 . . . . 2 . . . . Level 5 . | . . . . . . . . . . . . . . . . . . . . . . . . High Security . | . . . . . . . . . . . . . . . . . . . . . . . . Max Security . | . . . . . . . . . . . . . . . . . . . . . . . . Peak Influence 1350 | 10 110 799 310 63 1121 978 438 1172 615 . . . 204 1350 891 . . . 1102 890 509 363 859 Initial 708 | . . . 310 63 34 546 411 248 615 . . . 151 128 708 . . . . 539 481 163 81 Average 480 | 1 36 545 259 60 537 712 362 769 596 . . . 151 808 784 . . . 236 628 439 304 252 Influence Increases 13023 | 15 351 1421 3 . 1217 888 262 984 21 174 . 205 333 1412 405 . . 330 2388 895 290 286 1143 Destroy 0b10 Robot/C 6840 | . 220 920 . . 620 540 100 520 . 120 . 140 100 620 280 . . 300 1300 500 160 80 320 Destroy 0b10 Robot/NC 535 | 15 15 90 . . 10 40 20 30 5 . . 5 . . 10 . . . 135 40 10 45 65 Destroy Leader 1190 | . 54 230 . . 40 140 22 40 . 20 . 20 30 50 72 . . 30 316 56 . . 70 Allied During Kill 776 | . . . . . . 11 . 22 1 34 . 40 31 38 . . . . 100 220 74 100 105 Successful Hack 227 | . 30 29 . . . 64 24 . . . . . 19 . 12 . . . 49 . . . . Select Force Hacks 60 | . 30 30 . . . . . . . . . . . . . . . . . . . . . Disable Machine 510 | . . 60 . . 15 30 45 15 15 . . . . 30 . . . . 150 15 . 45 90 Anti-Garrison Action 1400 | . . . . . 450 . . 300 . . . . . 500 . . . . . . . . 150 Destroy Structure 870 | . 2 62 3 . 82 3 36 57 . . . . 3 129 1 . . . 158 34 46 16 238 Advance Influence 150 | . . . . . . . . . . . . . 150 . . . . . . . . . . Partial Spotted 15 | . . . . . . . . . . . . . . . . . . . . . . . 15 Lose Combat Pursuer 450 | . . . . . . 60 15 . . . . . . 45 30 . . . 180 30 . . 90 Influence Decreases 12168 | 15 351 624 637 110 149 1103 813 167 627 432 308 202 152 246 932 305 518 330 1287 1136 741 460 523 Entered New Map 5722 | . . . 487 100 19 575 495 107 557 210 308 . 2 56 642 305 518 . . 562 379 246 154 Time Decay 4791 | 15 351 604 80 10 . 458 318 . 70 222 . 202 140 . 270 . . 310 612 434 222 214 259 Lost Part 754 | . . 20 70 . 130 30 . 40 . . . . 10 90 20 . . 20 234 40 . . 50 Lost Ally 751 | . . . . . . 40 . 20 . . . . . 100 . . . . 291 100 140 . 60 Purge Threat 150 | . . . . . . . . . . . . . . . . . . . 150 . . . . Squads Dispatched 51 | . 4 7 . 1 . 4 3 . . . . . 3 . 2 . . . 21 2 . . 4 Investigation 17 | . 2 5 . 1 . 2 2 . . . . . 2 . 1 . . . 2 . . . . Extermination 11 | . . . . . . . 1 . . . . . 1 . 1 . . . 7 . . . 1 Reinforcement 9 | . 2 1 . . . 1 . . . . . . . . . . . . 5 . . . . Assault 8 | . . 1 . . . 1 . . . . . . . . . . . . 1 2 . . 3 Garrison 6 | . . . . . . . . . . . . . . . . . . . 6 . . . . Intercept . | . . . . . . . . . . . . . . . . . . . . . . . . Searches Triggered . | . . . . . . . . . . . . . . . . . . . . . . . . Data Miner Redirects 2 | . . . . . . . . . . . . . . . . . . . . 1 . . 1 Construction Impeded 2 | . . . . . . . . . . . . . . . . . . . 2 . . . . Haulers Reinforced . | . . . . . . . . . . . . . . . . . . . . . . . . Active Scanning Responses . | . . . . . . . . . . . . . . . . . . . . . . . . Cargo Convoy Interrupts . | . . . . . . . . . . . . . . . . . . . . . . . . Stealth | -11 -10 -9 -9 -8 -8 -8 -7 -7 -7 -7 -7 -6 -6 -6 -6 -6 -6 -5 -5 -5 -5 -5 -5 --------- Run | Yrd Mat Mat Min Mat Gar Mat Fac Gar Fac Low Dat Pro Fac Gar Fac Low Zio Pro Fac Ext Cet Arc Hub Distress Signals 16 | . 2 4 . . . 3 . . . . . . . . . . . . 1 1 3 . 2 Communications Jammed 15 | . . . . . . . . . . . . . . . . . . . 5 7 . . 3 Distress Signals 14 | . . . . . . . . . . . . . . . . . . . 4 7 . . 3 Times Spotted 425 | . 16 59 10 1 32 36 9 24 . 6 . 6 4 30 18 . . 15 80 33 4 6 36 Peak Tracking Total 17 | . 8 6 14 1 4 6 3 6 . 3 . 3 3 9 5 . . 4 6 8 4 1 17 Tactical Retreats 26 | . . . 2 . . 3 1 . . . . . . 2 2 . . . 12 1 . . 3 Traps | -11 -10 -9 -9 -8 -8 -8 -7 -7 -7 -7 -7 -6 -6 -6 -6 -6 -6 -5 -5 -5 -5 -5 -5 ------- Run | Yrd Mat Mat Min Mat Gar Mat Fac Gar Fac Low Dat Pro Fac Gar Fac Low Zio Pro Fac Ext Cet Arc Hub Traps Triggered 17 | . . . . . 6 . . 2 . . . . . 1 1 . . . 4 2 . . 1 Indirectly . | . . . . . . . . . . . . . . . . . . . . . . . . Trap Hack Attempts 48 | . . 48 . . . . . . . . . . . . . . . . . . . . . Triggered . | . . . . . . . . . . . . . . . . . . . . . . . . Disarmed . | . . . . . . . . . . . . . . . . . . . . . . . . Reprogrammed 5 | . . 5 . . . . . . . . . . . . . . . . . . . . . Reused . | . . . . . . . . . . . . . . . . . . . . . . . . Traps Extracted 4 | . . 4 . . . . . . . . . . . . . . . . . . . . . Installed . | . . . . . . . . . . . . . . . . . . . . . . . . Triggered . | . . . . . . . . . . . . . . . . . . . . . . . . Most Traps Carried 4 | . . 4 4 4 4 4 4 4 4 4 4 4 4 4 4 4 4 4 4 4 4 4 4 Machines | -11 -10 -9 -9 -8 -8 -8 -7 -7 -7 -7 -7 -6 -6 -6 -6 -6 -6 -5 -5 -5 -5 -5 -5 ---------- Run | Yrd Mat Mat Min Mat Gar Mat Fac Gar Fac Low Dat Pro Fac Gar Fac Low Zio Pro Fac Ext Cet Arc Hub Machines Disabled 57 | . . 5 . . 7 2 3 5 1 . . . . 10 . . . 1 10 3 . 3 7 Max in Single Turn 4 | . . 1 . . 2 1 2 1 1 . . . . 2 . . . 1 4 1 . 1 4 Garrison Access 1 | . . . . . . . . . . . . . . . . . . . . . . . 1 Garrison Relay 12 | . . . . . 4 . . 4 . . . . . 4 . . . . . . . . . Phase Generator 2 | . . . . . 1 . . . . . . . . 1 . . . . . . . . . Network Hub 1 | . . . . . . . . . . . . . . . . . . . . . . . 1 Machines Repaired . | . . . . . . . . . . . . . . . . . . . . . . . . Machines Dismantled . | . . . . . . . . . . . . . . . . . . . . . . . . Machines Sabotaged . | . . . . . . . . . . . . . . . . . . . . . . . . Overloaded Fab Kills . | . . . . . . . . . . . . . . . . . . . . . . . . Hacking | -11 -10 -9 -9 -8 -8 -8 -7 -7 -7 -7 -7 -6 -6 -6 -6 -6 -6 -5 -5 -5 -5 -5 -5 --------- Run | Yrd Mat Mat Min Mat Gar Mat Fac Gar Fac Low Dat Pro Fac Gar Fac Low Zio Pro Fac Ext Cet Arc Hub Machines Accessed 65 | . 7 15 . 1 3 9 4 2 . . 4 . 2 1 1 . . 1 15 . . . . Terminals 42 | . 6 10 . . 3 6 1 2 . . . . 1 1 1 . . 1 10 . . . . Fabricators 2 | . . . . . . . . . . . . . . . . . . . 2 . . . . Repair Stations 4 | . . 2 . . . 2 . . . . . . . . . . . . . . . . . Recycling Units 4 | . 1 1 . . . . 1 . . . . . . . . . . . 1 . . . . Scanalyzers 5 | . . 2 . . . 1 1 . . . . . . . . . . . 1 . . . . Garrison Access 4 | . . . . 1 . . 1 . . . . . 1 . . . . . 1 . . . . Total Hacks 216 | . 22 50 . 3 8 29 10 4 . . 27 . 11 1 2 . . 7 42 . . . . Successful 132 | . 14 28 . 1 1 22 4 1 . . 27 . 5 1 2 . . 7 19 . . . . Failed 83 | . 8 21 . 2 7 7 6 3 . . . . 6 . . . . . 23 . . . . Catastrophic 11 | . . 2 . 1 3 . . . . . . . . . . . . . 5 . . . . Database Lockouts 1 | . . 1 . . . . . . . . . . . . . . . . . . . . . Manual 94 | . 18 23 . 2 . 18 4 . . . . . 8 . 1 . . . 19 . 1 . . Terminals 134 | . 21 36 . . 8 23 2 4 . . . . 9 1 2 . . 7 21 . . . . Fabricators 13 | . . . . . . . . . . . . . . . . . . . 13 . . . . Repair Stations 10 | . . 8 . . . 2 . . . . . . . . . . . . . . . . . Recycling Units 9 | . 1 1 . . . . 3 . . . . . . . . . . . 4 . . . . Scanalyzers 13 | . . 5 . . . 4 2 . . . . . . . . . . . 2 . . . . Garrison Access 10 | . . . . 3 . . 3 . . . . . 2 . . . . . 2 . . . . Terminal Hacks 66 | . 3 10 . . 1 10 . 1 . . 27 . 1 1 2 . . 7 3 . . . . Record 19 | . . 1 . . . . . . . . 11 . . . . . . 7 . . . . . Part Schematic 8 | . . . . . . . . . . . 8 . . . . . . . . . . . . Robot Schematic 6 | . . . . . . . . . . . 5 . . . 1 . . . . . . . . Robot Analysis 3 | . 1 2 . . . . . . . . . . . . . . . . . . . . . Prototype ID Bank 13 | . 2 3 . . . 4 . . . . 3 . 1 . . . . . . . . . . Open Door 1 | . . . . . 1 . . . . . . . . . . . . . . . . . . Branch Access Points 2 | . . . . . . 1 . . . . . . . . . . . . 1 . . . . Emergency Access Points 1 | . . . . . . . . 1 . . . . . . . . . . . . . . . Terminal Index 1 | . . 1 . . . . . . . . . . . . . . . . . . . . . Scanalyzer Index 1 | . . . . . . 1 . . . . . . . . . . . . . . . . . Unreport Threat 1 | . . . . . . . . . . . . . . . . . . . 1 . . . . Locate Traps 3 | . . 1 . . . . . . . . . . . . 1 . . . 1 . . . . Registered Components 1 | . . 1 . . . . . . . . . . . . . . . . . . . . . Zone Layout 5 | . . 1 . . . 4 . . . . . . . . . . . . . . . . . Garrison Registry 1 | . . . . . . . . . . . . . . 1 . . . . . . . . . Fabricator Hacks 10 | . . . . . . . . . . . . . . . . . . . 10 . . . . Load Schematic 5 | . . . . . . . . . . . . . . . . . . . 5 . . . . Build 5 | . . . . . . . . . . . . . . . . . . . 5 . . . . Repair Station Hacks 3 | . . 3 . . . . . . . . . . . . . . . . . . . . . Scan Component 2 | . . 2 . . . . . . . . . . . . . . . . . . . . . Repair 1 | . . 1 . . . . . . . . . . . . . . . . . . . . . Recycling Unit Hacks . | . . . . . . . . . . . . . . . . . . . . . . . . Scanalyzer 10 | . . 4 . . . 3 2 . . . . . . . . . . . 1 . . . . Insert Component 2 | . . 2 . . . . . . . . . . . . . . . . . . . . . Analyze 2 | . . 2 . . . . . . . . . . . . . . . . . . . . . Retrieve Study 6 | . . . . . . 3 2 . . . . . . . . . . . 1 . . . . Garrison Access Hacks 3 | . . . . 1 . . 1 . . . . . 1 . . . . . . . . . . Unlock Access 3 | . . . . 1 . . 1 . . . . . 1 . . . . . . . . . . Unauthorized Hacks 40 | . 11 11 . . . 9 1 . . . . . 3 . . . . . 5 . . . . Terminals 31 | . 10 9 . . . 7 . . . . . . 2 . . . . . 3 . . . . Assimilate 1 | . 1 . . . . . . . . . . . . . . . . . . . . . . Botnet 13 | . 3 4 . . . 2 . . . . . . 1 . . . . . 3 . . . . Skim 17 | . 6 5 . . . 5 . . . . . . 1 . . . . . . . . . . Fabricators 1 | . . . . . . . . . . . . . . . . . . . 1 . . . . Prioritize 1 | . . . . . . . . . . . . . . . . . . . 1 . . . . Repair Stations 3 | . . 1 . . . 2 . . . . . . . . . . . . . . . . . Patch 3 | . . 1 . . . 2 . . . . . . . . . . . . . . . . . Recycling Units 3 | . 1 1 . . . . . . . . . . . . . . . . 1 . . . . Reject 1 | . . . . . . . . . . . . . . . . . . . 1 . . . . Tunnel 2 | . 1 1 . . . . . . . . . . . . . . . . . . . . . Scanalyzers . | . . . . . . . . . . . . . . . . . . . . . . . . Garrison Access 2 | . . . . . . . 1 . . . . . 1 . . . . . . . . . . Reprogram 2 | . . . . . . . 1 . . . . . 1 . . . . . . . . . . Data Cores Recovered 1 | . . . . . . . 1 . . . . . . . . . . . . . . . . Used 1 | . . . . . . . 1 . . . . . . . . . . . . . . . . Hacking Detections 49 | . 6 13 . 1 3 4 3 2 . . . . 2 1 . . . . 14 . . . . Full Trace Events 10 | . . 3 . 1 2 . 1 . . . . . 1 . . . . . 2 . . . . Feedback Events . | . . . . . . . . . . . . . . . . . . . . . . . . Feedback Blocked . | . . . . . . . . . . . . . . . . . . . . . . . . Robot Schematics Acquired 6 | . . . . . . . . . . . 5 . . . 1 . . . . . . . . Robots Built 17 | . . . . . . . . . . . . . . . . . . . 17 . . . . Authchips 5 | . . . . . . . . . . . . . . . . . . . 5 . . . . Time 199 | . . . . . . . . . . . . . . . . . . . 199 . . . . Total Robot Build Rating 68 | . . . . . . . . . . . . . . . . . . . 68 . . . . Part Schematics Acquired 10 | . . 2 . . . . . . . . 8 . . . . . . . . . . . . Parts Built . | . . . . . . . . . . . . . . . . . . . . . . . . Authchips . | . . . . . . . . . . . . . . . . . . . . . . . . Time . | . . . . . . . . . . . . . . . . . . . . . . . . Total Part Build Rating . | . . . . . . . . . . . . . . . . . . . . . . . . Part Studies Acquired 6 | . . . . . . 3 2 . . . . . . . . . . . 1 . . . . Parts Repaired 1 | . . 1 . . . . . . . . . . . . . . . . . . . . . Time 32 | . . 32 . . . . . . . . . . . . . . . . . . . . . Parts Recycled . | . . . . . . . . . . . . . . . . . . . . . . . . Recycled Matter . | . . . . . . . . . . . . . . . . . . . . . . . . Retrieved Matter . | . . . . . . . . . . . . . . . . . . . . . . . . Retrieved Components . | . . . . . . . . . . . . . . . . . . . . . . . . Parts Scanalyzed 2 | . . 2 . . . . . . . . . . . . . . . . . . . . . Part Schematics Acquired 2 | . . 2 . . . . . . . . . . . . . . . . . . . . . Parts Damaged . | . . . . . . . . . . . . . . . . . . . . . . . . Bothacking | -11 -10 -9 -9 -8 -8 -8 -7 -7 -7 -7 -7 -6 -6 -6 -6 -6 -6 -5 -5 -5 -5 -5 -5 ------------ Run | Yrd Mat Mat Min Mat Gar Mat Fac Gar Fac Low Dat Pro Fac Gar Fac Low Zio Pro Fac Ext Cet Arc Hub Used RIF Installer . | . . . . . . . . . . . . . . . . . . . . . . . . Robots Hacked 1 | . . . . . . . . . . . . . . . . . . . 1 . . . . Non-combat . | . . . . . . . . . . . . . . . . . . . . . . . . Combat . | . . . . . . . . . . . . . . . . . . . . . . . . Robot Hacks Applied . | . . . . . . . . . . . . . . . . . . . . . . . . Manual 1 | . . . . . . . . . . . . . . . . . . . 1 . . . . Relay Couplers Released 57 | . . . . . 21 . . 18 . . . . . 16 . . . . . . . . 2 Machine Destruction 53 | . . . . . 17 . . 18 . . . . . 16 . . . . . . . . 2 Programmers 4 | . . . . . 4 . . . . . . . . . . . . . . . . . . Fabnet Peak Effective % . | . . . . . . . . . . . . . . . . . . . . . . . . Robots Rewired 4 | . . . . . . . . . . . . . . . . . . . 1 3 . . . Allies Hacked . | . . . . . . . . . . . . . . . . . . . . . . . . Hacks Repelled . | . . . . . . . . . . . . . . . . . . . . . . . . Allies | -11 -10 -9 -9 -8 -8 -8 -7 -7 -7 -7 -7 -6 -6 -6 -6 -6 -6 -5 -5 -5 -5 -5 -5 -------- Run | Yrd Mat Mat Min Mat Gar Mat Fac Gar Fac Low Dat Pro Fac Gar Fac Low Zio Pro Fac Ext Cet Arc Hub Total Allies 47 | . . . . . 2 . 1 2 . . . . 3 . . . . . 19 15 5 . . Largest Group 17 | . . . . . 2 2 1 2 2 2 2 2 5 5 . . . . 17 9 6 4 4 Highest-Rated Group 404 | . . . . . 56 56 21 175 175 175 175 175 262 262 . . . . 204 404 394 317 317 Highest-Rated Ally 159 | . . . . . 31 31 21 95 95 95 95 95 95 95 . . . . 85 159 152 96 96 Initial Warlord ECA Mod 26 | . . . . . . 9 8 8 16 16 16 15 15 15 26 26 26 25 25 25 25 25 25 Total Orders 8 | . . . . . . . . . . . . . . . . . . 5 2 . 1 . . ROAM 1 | . . . . . . . . . . . . . . . . . . . . . 1 . . RETURN 7 | . . . . . . . . . . . . . . . . . . 5 2 . . . . Ally Attacks 396 | . . . . . . 11 1 6 . 10 . 18 9 39 . . . . 88 129 52 15 18 Total Damage 10356 | . . . . . . 216 12 169 . 541 . 923 433 1049 . . . . 1736 2772 1220 688 597 Kills 74 | . . . . . . 3 . 3 . 6 . 8 5 4 . . . . 14 18 7 3 3 Allies Corrupted 4 | . . . . . . . . . . . . . . . . . . . . . . . 4 Allies Melted . | . . . . . . . . . . . . . . . . . . . . . . . . Intel | -11 -10 -9 -9 -8 -8 -8 -7 -7 -7 -7 -7 -6 -6 -6 -6 -6 -6 -5 -5 -5 -5 -5 -5 ------- Run | Yrd Mat Mat Min Mat Gar Mat Fac Gar Fac Low Dat Pro Fac Gar Fac Low Zio Pro Fac Ext Cet Arc Hub Active Infowar (turns) 6311 | 13 338 . . . . . . . . . . . . . . . . . 3318 1065 472 442 663 Seismic 351 | 13 338 . . . . . . . . . . . . . . . . . . . . . . Decoding 5960 | . . . . . . . . . . . . . . . . . . . 3318 1065 472 442 663 Jamming 2952 | . . . . . . . . . . . . . . . . . . . 1434 903 . 75 540 Robot Analysis Total 3 | . 1 2 . . . . . . . . . . . . . . . . . . . . . Derelict Logs Recovered 5 | . . . . . . . . . . 1 . 2 . . . . 1 1 . . . . . Drone Launches 15 | . . . . . . . . . . . . . . . . . . 12 3 . . . . Drone Recoveries 13 | . . . . . . . . . . . . . . . . . . 11 2 . . . . Decoded 0b10 Intel 94 | . . . . . . . . . . . . . . . . . . . 62 17 1 2 12 Traps 51 | . . . . . . . . . . . . . . . . . . . 33 15 . . 3 Emergency Access 36 | . . . . . . . . . . . . . . . . . . . 28 . . . 8 Garrisons 2 | . . . . . . . . . . . . . . . . . . . 1 . . . 1 Exits 5 | . . . . . . . . . . . . . . . . . . . . 2 1 2 . Exploration | -11 -10 -9 -9 -8 -8 -8 -7 -7 -7 -7 -7 -6 -6 -6 -6 -6 -6 -5 -5 -5 -5 -5 -5 ------------- Run | Yrd Mat Mat Min Mat Gar Mat Fac Gar Fac Low Dat Pro Fac Gar Fac Low Zio Pro Fac Ext Cet Arc Hub Turns Passed 21805 | 110 1196 2185 165 25 1578 1159 706 1461 146 464 132 425 282 1808 592 7 1780 1595 3319 1065 472 442 691 Spaces Moved 10749 | 49 538 1053 80 11 661 514 431 686 84 270 81 250 193 940 309 5 1072 726 1531 473 177 236 379 Core 65 | 11 . . . . . . . . . . . . . . . . . . . . . . 54 Treads 9655 | 38 538 1053 80 11 661 429 407 686 84 270 81 250 56 771 309 5 1072 726 917 473 177 236 325 Legs 109 | . . . . . . 85 24 . . . . . . . . . . . . . . . . Wheels 920 | . . . . . . . . . . . . . 137 169 . . . . 614 . . . . Hover . | . . . . . . . . . . . . . . . . . . . . . . . . Flight . | . . . . . . . . . . . . . . . . . . . . . . . . Fastest Speed 50 | 50 160 160 160 160 160 130 130 152 165 165 165 165 130 130 160 160 160 160 145 162 163 163 50 Average Speed 161 | 135 160 160 163 160 167 154 151 165 165 165 165 165 138 154 160 160 160 160 162 183 220 163 146 Slowest Speed 385 | 160 160 160 240 160 240 200 155 212 165 165 165 165 158 217 160 160 160 160 385 243 242 163 163 Overloaded Moves . | . . . . . . . . . . . . . . . . . . . . . . . . Propulsion Burnouts . | . . . . . . . . . . . . . . . . . . . . . . . . Robots Hopped . | . . . . . . . . . . . . . . . . . . . . . . . . Potential Cave-ins . | . . . . . . . . . . . . . . . . . . . . . . . . Cave-ins Triggered . | . . . . . . . . . . . . . . . . . . . . . . . . Exploration Rate (%) 51 | 4 90 95 27 4 75 55 14 92 3 52 68 47 7 91 11 2 84 93 52 68 57 96 50 Regions Visited 23 Branch Regions 11 Pre-discovered Areas 14 | . 3 3 . . . 2 . . . 1 1 1 . . . . 3 . . . . . . Known Exits Taken 12 | . 1 . 1 1 . 1 1 . 1 . . 1 1 . 1 . . . 1 1 . 1 . Unknown Exits Taken 8 | 1 . 1 . . . . . . . 1 1 . . . . 1 1 1 . . 1 . . Scrap Searched 15 | . . . 2 . . . . . . 2 . 2 . . . . 5 4 . . . . . Spaces Dug 31 | . 1 2 . . 3 . . 2 . . . . . . . . . . 16 . . . 7 Terrain Destroyed 611 | . 1 60 10 . 72 . 39 2 . . . . . 175 . . . . 59 10 2 2 179 Melee 29 | . 1 2 . . 3 . . 2 . . . . . . . . . . 14 . . . 7 Projectile 37 | . . . . . . . 2 . . . . . . . . . . . 6 9 2 2 16 AOE 543 | . . 58 10 . 69 . 37 . . . . . . 175 . . . . 39 . . . 155 Terrain Rammed . | . . . . . . . . . . . . . . . . . . . . . . . . Walls Destroyed . | . . . . . . . . . . . . . . . . . . . . . . . . Machines Disabled . | . . . . . . . . . . . . . . . . . . . . . . . . Actions | -11 -10 -9 -9 -8 -8 -8 -7 -7 -7 -7 -7 -6 -6 -6 -6 -6 -6 -5 -5 -5 -5 -5 -5 --------- Run | Yrd Mat Mat Min Mat Gar Mat Fac Gar Fac Low Dat Pro Fac Gar Fac Low Zio Pro Fac Ext Cet Arc Hub Total 13442 | 69 770 1341 105 18 929 737 465 852 90 288 80 261 208 1154 349 4 1137 1084 1999 568 240 262 432 Wait 1279 | . 139 74 17 3 132 139 6 22 . 12 . 11 11 77 15 . 61 305 183 24 45 . 3 Move 10727 | 49 537 1052 79 11 660 513 430 684 83 269 80 249 192 939 308 4 1071 725 1530 472 176 235 379 Hop . | . . . . . . . . . . . . . . . . . . . . . . . . Pick Up 110 | 2 12 11 . . 8 10 2 11 . 1 . . . 16 . . 4 2 25 4 2 . . Fast Attach 70 | 7 1 9 . . 5 . 3 7 1 . . . 1 2 . . . 6 19 1 3 3 2 Attach 79 | . 1 6 3 4 10 3 3 3 . . . . 3 10 2 . . 1 26 3 . 1 . Detach 18 | . . 4 . . . . 2 3 1 . . . 1 1 . . . 2 4 . . . . Swap 148 | . 10 18 . . 16 12 2 14 1 3 . . . 15 1 . . 11 28 2 3 4 8 Drop 93 | . 11 11 . . 1 5 6 15 2 2 . . . 14 . . 1 6 10 . 4 3 2 Fire 641 | 11 54 99 6 . 67 55 10 31 . 1 . 1 . 61 22 . . 25 119 39 7 4 29 Melee 170 | . 1 4 . . 26 . . 60 2 . . . . 11 . . . 1 34 11 . 11 9 Ram 2 | . . . . . . . . . . . . . . . . . . . 2 . . . . Kick . | . . . . . . . . . . . . . . . . . . . . . . . . Crush 20 | . 4 5 . . . . 1 . . . . . . . 1 . . . 7 1 . 1 . Escape Stasis 18 | . . . . . 4 . . 2 . . . . . 8 . . . . . 4 . . . Rewire 19 | . . . . . . . . . . . . . . . . . . . 12 7 . . . Trap 48 | . . 48 . . . . . . . . . . . . . . . . . . . . . Miscellaneous . | . . . . . . . . . . . . . . . . . . . . . . . . Route ------- -11/Scrapyard -10/Materials (discovered 5 exits: *Mat x3 / *Min / Sub) -9/Materials (discovered 5 exits: *Mat x3 / [*Min x2]) -9/Mines -8/Materials -8/Garrison (discovered 3 exits: *Mat x3) -8/Materials (discovered 5 exits: *Fac x3 / *Sto x2) -7/Factory (discovered 7 exits: Fac x4 / Low x2 / Gar) -7/Garrison (discovered 3 exits: *Fac x3) -7/Factory -7/Lower Caves (discovered 2 exits: *Low / *Dat) -7/Data Miner -6/Proximity Caves -6/Factory (discovered 2 exits: Low / Gar) -6/Garrison (discovered 3 exits: *Fac x3) -6/Factory -6/Lower Caves -6/Zion -5/Proximity Caves -5/Factory (discovered 6 exits: *Fac x2 / *Upp x2 / *Ext x2) -5/Extension (discovered 3 exits: *Fac x2 / *Cet) -5/Cetus (discovered 2 exits: *Fac / [*Arc]) -5/Archives (discovered 3 exits: *Fac / *Hub x2) -5/Hub_04(d) (discovered 4 exits: *Fac x4) History --------- Turn | Location | Event 5 | -11/Scrapyard | Discovered new exit (range 15) 111 | -11/Scrapyard | Entered Materials 193 | -10/Materials | Core integrity fell below 50% 338 | -10/Materials | Build established: Mutant 360 | -10/Materials | Discovered new exit (range 10) 611 | -10/Materials | Derelicts attacked the area 836 | -10/Materials | Discovered new exit (range 8) 921 | -10/Materials | Core integrity fell below 20% 1014 | -10/Materials | Learned Storage emergency access door positions 1079 | -10/Materials | Loaded intel: 12 trap records 1133 | -10/Materials | Identified exit to Subcaves 1138 | -10/Materials | Discovered new exit (range 12) 1188 | -10/Materials | Discovered new exit (range 13) 1229 | -10/Materials | Learned Materials trap positions 1295 | -10/Materials | Identified exit to Materials 1295 | -10/Materials | Identified exit to Mines 1307 | -10/Materials | Entered another Materials area 1307 | -9/Materials | Evolved 2 slots: Utility x1, Weapon x1 1308 | -9/Materials | Loaded intel: 15 trap records 1481 | -9/Materials | Discovered new exit (range 16) 1685 | -9/Materials | Central database locked down 1811 | -9/Materials | Destroyed 7 combat bots 1817 | -9/Materials | Discovered new exit (range 12) 2107 | -9/Materials | First assault squad dispatched 2296 | -9/Materials | Build established: Gunner 2339 | -9/Materials | Discovered new exit (range 16) 2467 | -9/Materials | Learned Storage stockpile data 2467 | -9/Materials | Discovered new exit (range 15) 2606 | -9/Materials | Learned Storage trap positions 2629 | -9/Materials | Learned location of 1 exit from Storage 2661 | -9/Materials | Learned Storage stockpile data 2703 | -9/Materials | Identified exit to Materials 3162 | -9/Materials | Repaired Hrd. Light Armor Plating 3492 | -9/Materials | Entered Mines 3563 | -9/Mines | Met a Derelict bent on vengeance 3568 | -9/Mines | Discovered exit to Materials (range 13) 3586 | -9/Mines | Assembled infested the area 3655 | -9/Mines | Core integrity fell below 50% 3657 | -9/Mines | Entered Materials 3657 | -8/Materials | Evolved 2 slots: Weapon x2 3674 | -8/Materials | Lost 7 parts (1p2n1u3w) 3679 | -8/Materials | Identified exit to Garrison 3682 | -8/Materials | Entered Garrison 3862 | -8/Garrison | Triggered checkpoint 4032 | -8/Garrison | Garrison Relay disabled 4187 | -8/Garrison | Build established: Scavenger-Gunner 4238 | -8/Garrison | Triggered checkpoint 4346 | -8/Garrison | Garrison Relay disabled 4416 | -8/Garrison | Triggered checkpoint 4459 | -8/Garrison | Discovered new exit (range 14) 4473 | -8/Garrison | Lost 3 parts (1n1u1w) 4574 | -8/Garrison | Triggered checkpoint 4712 | -8/Garrison | Triggered checkpoint 4720 | -8/Garrison | Core integrity fell below 50% 4766 | -8/Garrison | Garrison Relay disabled 4795 | -8/Garrison | Discovered new exit (range 8) 4896 | -8/Garrison | Triggered checkpoint 4930 | -8/Garrison | Triggered checkpoint 4976 | -8/Garrison | Garrison Relay disabled 5039 | -8/Garrison | Rescued a captive Derelict 5041 | -8/Garrison | Rescued a captive Derelict 5073 | -8/Garrison | Discovered new exit (range 14) 5221 | -8/Garrison | Phase Generator disabled 5260 | -8/Garrison | Entered Materials 5260 | -8/Materials | Accompanied by 2 allies 5344 | -8/Materials | Discovered new exit (range 14) 5699 | -8/Materials | Discovered new exit (range 10) 5720 | -8/Materials | Discovered new exit (range 4) 5956 | -8/Materials | Core integrity fell below 20% 5982 | -8/Materials | Identified exit to Storage 6025 | -8/Materials | Identified exit to Factory 6060 | -8/Materials | First assault squad dispatched 6141 | -8/Materials | Learned location of Recycling (-8) 6184 | -8/Materials | Learned location of 1 exit from Storage 6219 | -8/Materials | Learned location of 2 exits from Factory 6246 | -8/Materials | Learned location of Zion (-6) 6395 | -8/Materials | Learned location of 1 exit from Lower Caves 6419 | -8/Materials | Entered Factory 6419 | -7/Factory | Evolved 2 slots: Propulsion x1, Utility x1 6420 | -7/Factory | Identified exit to Factory 6421 | -7/Factory | Identified exit to Lower Caves 6742 | -7/Factory | Build established: Scientist-Gunner 7038 | -7/Factory | Identified exit to Garrison 7125 | -7/Factory | Entered Garrison 7125 | -7/Garrison | Accompanied by 1 ally 7126 | -7/Garrison | Identified exit to Factory 7227 | -7/Garrison | Triggered checkpoint 7248 | -7/Garrison | Garrison Relay disabled 7353 | -7/Garrison | Triggered checkpoint 7355 | -7/Garrison | Triggered checkpoint 7463 | -7/Garrison | Triggered checkpoint 7465 | -7/Garrison | Build established: Scavenger-Gunner 7469 | -7/Garrison | Destroyed 11 combat bots 7623 | -7/Garrison | Triggered checkpoint 7719 | -7/Garrison | Garrison Relay disabled 7987 | -7/Garrison | Triggered checkpoint 8018 | -7/Garrison | Garrison Relay disabled 8099 | -7/Garrison | Discovered exit to Factory (range 13) 8246 | -7/Garrison | Found embedded Infiltrators 8247 | -7/Garrison | Discovered exit to Factory (range 10) 8277 | -7/Garrison | Garrison Relay disabled 8285 | -7/Garrison | Triggered checkpoint 8465 | -7/Garrison | Attempted to access garrison exit controls, blocked by remote lockdown 8586 | -7/Garrison | Entered Factory 8586 | -7/Factory | Accompanied by 2 allies 8657 | -7/Factory | Discovered exit to Lower Caves (range 10) 8732 | -7/Factory | Entered Lower Caves 8732 | -7/Lower Caves | Accompanied by 2 allies 8733 | -7/Lower Caves | Identified exit to Lower Caves 8759 | -7/Lower Caves | Met a Warlord Commander 8760 | -7/Lower Caves | Learned location of Warlord (-4) 8761 | -7/Lower Caves | Warlord Commander delivered Encrypted Comm Array 8761 | -7/Lower Caves | Found Encrypted Comm Array 8775 | -7/Lower Caves | Learned location of 1 exit from Factory 9191 | -7/Lower Caves | A Derelict revealed a hidden shortcut to meet someone special 9196 | -7/Lower Caves | Entered Data Miner 9196 | -7/Data Miner | Accompanied by 2 allies 9196 | -7/Data Miner | Discovered new exit (range 6) 9228 | -7/Data Miner | Met Data Miner 9258 | -7/Data Miner | Learned location of Section 7 (-2) 9258 | -7/Data Miner | Acquired the access code to Warlord's prototype stash 9289 | -7/Data Miner | Received God Mode back door access code from Data Miner 9328 | -7/Data Miner | Entered Proximity Caves 9328 | -6/Proximity Caves | Accompanied by 2 allies 9336 | -6/Proximity Caves | Spotter reported a threat 9469 | -6/Proximity Caves | Learned location of Extension (-5) 9488 | -6/Proximity Caves | Attracted the attention of an 0b10 checkpoint 9753 | -6/Proximity Caves | Entered Factory 9753 | -6/Factory | Accompanied by 2 allies 9753 | -6/Factory | Evolved 2 slots: Propulsion x1, Weapon x1 9754 | -6/Factory | Identified exit to Lower Caves 9999 | -6/Factory | Identified exit to Garrison 10035 | -6/Factory | Entered Garrison 10035 | -6/Garrison | Accompanied by 5 allies 10056 | -6/Garrison | Build established: Scavenger-Executioner 10065 | -6/Garrison | Triggered checkpoint 10229 | -6/Garrison | Triggered checkpoint 10229 | -6/Garrison | Garrison Relay disabled 10293 | -6/Garrison | Triggered checkpoint 10296 | -6/Garrison | Triggered checkpoint 10323 | -6/Garrison | Triggered checkpoint 10365 | -6/Garrison | Lost 4 allies 10380 | -6/Garrison | Destroyed 7 combat bots 10414 | -6/Garrison | Lost 5 parts (1n4w) 10528 | -6/Garrison | Discovered new exit (range 10) 10552 | -6/Garrison | Triggered checkpoint 10556 | -6/Garrison | Phase Generator disabled 10568 | -6/Garrison | Met a derelict Sapper fleeing the area 10582 | -6/Garrison | Garrison Relay disabled 10822 | -6/Garrison | Discovered new exit (range 14) 10847 | -6/Garrison | Triggered checkpoint 10930 | -6/Garrison | Discovered new exit (range 24) 10930 | -6/Garrison | Discovered new exit (range 36) 10930 | -6/Garrison | Discovered new exit (range 67) 10953 | -6/Garrison | Garrison Relay disabled 10986 | -6/Garrison | Spotted Striker 11200 | -6/Garrison | Lost 3 parts (1p2w) 11211 | -6/Garrison | Found Adv. Powered Armor 11371 | -6/Garrison | Triggered checkpoint 11843 | -6/Garrison | Entered Factory 12225 | -6/Factory | Discovered exit to Lower Caves (range 16) 12435 | -6/Factory | Entered Lower Caves 12436 | -6/Lower Caves | A Derelict revealed a hidden shortcut to a safe place 12442 | -6/Lower Caves | Entered Zion 12495 | -6/Zion | System corruption cleaned by Quarantine Array 13028 | -6/Zion | Given A8's code to call for help 13227 | -6/Zion | Learned location of Armory (-3) 13321 | -6/Zion | Learned location of Quarantine (-2) 13414 | -6/Zion | Found CR-A16's Pointy Stick 13698 | -6/Zion | Visited the Megawrench Repair Shop 13698 | -6/Zion | Megawrench repaired 12 parts 13969 | -6/Zion | Met Imprinter 14207 | -6/Zion | Discovered new exit (range 10) 14222 | -6/Zion | Entered Proximity Caves 14224 | -5/Proximity Caves | Attracted the attention of an 0b10 checkpoint 14414 | -5/Proximity Caves | Spotted B-75 Beast 14441 | -5/Proximity Caves | Destroyed B-75 Beast 14716 | -5/Proximity Caves | Attracted the attention of an 0b10 base 14763 | -5/Proximity Caves | Destroyed 9 combat bots 14797 | -5/Proximity Caves | Learned Research stockpile data 14797 | -5/Proximity Caves | Learned Factory stockpile data 14797 | -5/Proximity Caves | Learned 8 Research zone layouts 15467 | -5/Proximity Caves | Discovered new exit (range 15) 15706 | -5/Proximity Caves | Received a Behemoth hack from an annoying Tinkerer 15817 | -5/Proximity Caves | Entered Factory 15817 | -5/Factory | Evolved 2 slots: Utility x2 15823 | -5/Factory | Discovered new exit (range 15) 16067 | -5/Factory | Discovered new exit (range 16) 16232 | -5/Factory | Lost 5 parts (1p1n2u1w) 16334 | -5/Factory | Lost 5 parts (1n4w) 16594 | -5/Factory | Lost 3 parts (3w) 17090 | -5/Factory | Watched by a mysterious "MATRIX" hacker. 17123 | -5/Factory | Fabricated S-27 Virus (x4) 17157 | -5/Factory | Fabricated S-27 Virus (x4) 17191 | -5/Factory | Fabricated S-27 Virus (x4) 17225 | -5/Factory | Fabricated S-27 Virus (x1) 17259 | -5/Factory | Fabricated S-27 Virus? 17416 | -5/Factory | Discovered new exit (range 10) 17448 | -5/Factory | Garrison activated, responded to threat 17450 | -5/Factory | Build established: Commander-Executioner 17544 | -5/Factory | Lost 17 allies 17696 | -5/Factory | Lost 4 parts (1p1n2w) 17974 | -5/Factory | Build established: Scavenger-Executioner 18052 | -5/Factory | System corruption reached 10% 18502 | -5/Factory | Spotted B-75 Beast 18507 | -5/Factory | Befriended a Behemoth using the annoying Tinkerer's hack 18598 | -5/Factory | Identified exit to Upper Caves 18598 | -5/Factory | Identified exit to Extension 18817 | -5/Factory | First assault squad dispatched 19136 | -5/Factory | Entered Extension 19161 | -5/Extension | Core integrity fell below 50% 19235 | -5/Extension | Rescued a captive Derelict 19248 | -5/Extension | Rescued a captive Derelict 19253 | -5/Extension | Build established: Scavenger-Gunner 19257 | -5/Extension | Rescued A7 19367 | -5/Extension | Rescued a captive Derelict 19369 | -5/Extension | Rescued a captive Derelict 19389 | -5/Extension | Rescued a captive Derelict 19390 | -5/Extension | Rescued a captive Derelict 19617 | -5/Extension | Spotted B-75 Beast 19629 | -5/Extension | Destroyed B-75 Beast 19634 | -5/Extension | Spotted B-75 Beast 19656 | -5/Extension | Allies destroyed B-75 Beast 19681 | -5/Extension | Identified exit to Factory 19683 | -5/Extension | Lost 3 allies 19736 | -5/Extension | First assault squad dispatched 19859 | -5/Extension | Rescued a captive Derelict 19860 | -5/Extension | Rescued a captive Derelict 19901 | -5/Extension | Rescued a captive Derelict 19961 | -5/Extension | Rescued a captive Derelict 19961 | -5/Extension | Rescued a captive Derelict 20059 | -5/Extension | Incoming assault squad redirected 20122 | -5/Extension | Lost 5 allies 20131 | -5/Extension | Build established: Scavenger-Executioner 20149 | -5/Extension | Identified exit to Cetus 20175 | -5/Extension | Discovered exit to Factory (range 10) 20201 | -5/Extension | Entered Cetus 20201 | -5/Cetus | Accompanied by 6 allies (A7) 20206 | -5/Cetus | Acquired a Cetus Manufacturing Module code from A7 20295 | -5/Cetus | Extracted ID and sensor layout for unrecognized location from A7's data core 20410 | -5/Cetus | Started Cetus Manufacturing Module 20435 | -5/Cetus | Manufactured an Enhanced Grunt 20439 | -5/Cetus | Discovered new exit (range 16) 20460 | -5/Cetus | Manufactured an Enhanced Grunt 20485 | -5/Cetus | Manufactured an Enhanced Grunt 20510 | -5/Cetus | Manufactured an Enhanced Grunt 20519 | -5/Cetus | Spotted Cetus Guard 20528 | -5/Cetus | Destroyed Cetus Guard 20535 | -5/Cetus | Manufactured an Enhanced Grunt 20539 | -5/Cetus | Spotted Cetus Guard 20542 | -5/Cetus | Destroyed Cetus Guard 20546 | -5/Cetus | Lost 4 allies 20549 | -5/Cetus | Destroyed Cetus Guard 20586 | -5/Cetus | Met Revision 17 20673 | -5/Cetus | Entered Archives 20673 | -5/Archives | Accompanied by 4 allies 20793 | -5/Archives | Discovered new exit (range 16) 20798 | -5/Archives | Identified exit to Hub_04(d) 21115 | -5/Archives | Entered Hub_04(d) 21115 | -5/Hub_04(d) | Accompanied by 4 allies 21164 | -5/Hub_04(d) | Discovered exit to Factory (range 10) 21402 | -5/Hub_04(d) | Discovered exit to Factory (range 16) 21539 | -5/Hub_04(d) | Discovered exit to Factory (range 7) 21624 | -5/Hub_04(d) | Lost 3 allies 21624 | -5/Hub_04(d) | Network Hub disabled 21678 | -5/Hub_04(d) | Destroyed 9 combat bots 21715 | -5/Hub_04(d) | First assault squad dispatched 21717 | -5/Hub_04(d) | Spotted Lightning 21724 | -5/Hub_04(d) | Spotted Lightning 21725 | -5/Hub_04(d) | Spotted Lightning 21731 | -5/Hub_04(d) | Destroyed Lightning 21733 | -5/Hub_04(d) | Incoming assault squad redirected 21748 | -5/Hub_04(d) | Destroyed Lightning 21768 | -5/Hub_04(d) | Spotted B-75 Beast 21778 | -5/Hub_04(d) | Released all parts (11) 21780 | -5/Hub_04(d) | Core integrity fell below 20% 21789 | -5/Hub_04(d) | Spotted Lightning 21804 | -5/Hub_04(d) | Discovered exit to Factory (range 2) 21806 | -5/Hub_04(d) | Destroyed by H-71 Marshal with Heavy Mass Driver Last Messages --------------- 21777_ M-28 Smith fits Unknown Engine on Lightning. 21778_ Railgun destroyed. 21778_ Released Imp. Weapon Cycler. 21778_ Released Exp. Heat Sink. 21778_ Released Katana. 21778_ Released Centrium Heavy Treads. 21778_ Released Imp. Target Analyzer. 21778_ Released 0b10 Decoder Chip [Scout]. 21778_ Released Huge Storage Unit. 21778_ Released Core Analyzer. 21778_ Released KE Penetrator. 21778_ Released Imp. Medium Treads. 21785_ System corrupted: Heat flow error (+204). 21788_ Acquired 17 matter. 21789_ Penetrated by EMDS Slug. 21790_ K-01 Serf collects debris. 21797_ Penetrated by Slug. 21801_ System corrupted: Matter fused (-5). 21804_ EXIT=FOUND: FACTORY Map ----- +----------------------------------------------------+ | ?????????????????????????????????????????????????? | | ???????????????????????????????????????????? | | ###??????????????????????????????????????????????? | | ?????????????????????????????????????????????????? | | ?????????????????????????????????????????????????? | | ?????????????????????????????????????????????????? | | #????????????????????????????????????????????????? | | #????????????????????????????????????????????????? | | ?????????????????????????????????????????????????? | | ?????????????????????????????????????????????????? | | ?????????????????????????????????????????????????? | | ?????????????????????????????????????????????????? | | ?????????????????????????????????????????????????? | | ####??????????????????????+??#+??????????????????? | | #?????????????????????? ??# ??????????????????? | | " #?????????????????????? ??# ??????????????????? | | " #?????????????????????? #?# ??????????????????? | | " #?????????????????????? #?# ####??????????????? | | #?????????????????????# #?# #??????????????? | | #????????????????????? #?# #??????????????? | | #????????????????????? #?# #??????????????? | | #?????????????????????# #?# #?????????????? | | ###"#???########/#??????## ### ###+###????????? | | #####???# ????### H ## ?????????? | | #?????# ?????? < g #??????????? | | ####### """" ???????#@Y ## #??????????? | | + + """" ???????##/### #??????????? | | ####### """" ???????# % ## #??????????? | | #?????# """" ????????# ##+###### #??????????? | | #?????# ?????????# # ###+#####??????? | | #?????# """" "????????# + ## #??????? | | [#?????+ """" "????????# # """ ## #??????? | | #?????# """" "????????# # ## #??????? | | ###?????# """"??????????# #######" #??????? | | ????????# ?????????????#* #?????# ="""" ######## | | ?????????##?????????????# #?????##[ %/= | | ????????????????????????#####??????#%%""" ######## | | ??????????????????????????????????##!! "" #??????? | | ###???????????????????????????????#"= #??????? | | #???????????????????????????????##% ""=#??????? | | " #????????????????????????????????#= ""*#??????? | | #????????????????????????????????# " ######## | | " #????????????????????????????????# !|# | | #????????????????????????????????# # | | " #???????##############???????????# """""""" | | #???????# #???????????# [== "" | | " ######### #???????????# [== "" | | / +^ #????# ????# === "" | | ########### ###### ##! "" | | ??????????# # #""""!!!!!""""""= | +----------------------------------------------------+ Best States ------------- Heat Dissipation 66 Energy Generation 25 Energy Capacity 350 Matter Stores 300 Matter Capacity 300 Sight Range 16 Terrain Scan Density 10 Jamming Range 14 Armor Coverage 800 Resistance: KI 30 Weapon Cycling 20 Evasion (%) 55 Targeting Accuracy 10 Target Analysis 6 Core Analysis 6 Recoil Reduction 4 Authchip Count 5 Trap Extractor Capacity 8 Item Schematics ----------------- Autogun | -9/Materials | Scanalyzed Imp. Treads | -9/Materials | Scanalyzed Combat Drone Bay | -7/Data Miner | Free Lgt. Regenerative Plating | -7/Data Miner | Free Multireflex Exoskeleton | -7/Data Miner | Free Exp. Utility Shielding | -7/Data Miner | Free Ion Burst Cannon | -7/Data Miner | Free Arm. Medium Treads | -7/Data Miner | Free Imp. Remote Datajack | -7/Data Miner | Free Imp. Recalibrator | -7/Data Miner | Free Robot Schematics ------------------ A-15 Conveyor | -7/Data Miner | Free M-22 Extractor | -7/Data Miner | Free S-27 Virus | -7/Data Miner | Free R-10 Processor | -7/Data Miner | Free L-41 Fighter | -7/Data Miner | Free M-28 Smith | -6/Factory | Hacked Fabricated ------------ S-27 Virus | x4 | -5/Factory | Authchip S-27 Virus | x4 | -5/Factory | Authchip S-27 Virus | x4 | -5/Factory | Authchip S-27 Virus | x1 | -5/Factory | Authchip S-27 Virus | x4 | -5/Factory | Authchip Repaired ---------- Hrd. Light Armor Plating | 33% | -9/Materials Studied --------- Hvy. Assault Rifle | -8/Materials | Hacked Hpw. Shotgun | -8/Materials | Hacked Shotgun | -8/Materials | Hacked Gauss Rifle | -7/Factory | Hacked Adv. Treads | -7/Factory | Hacked Autogun | -5/Factory | Hacked Alien Tech Used ----------------- None Achievements -------------- No Room For Error Challenges ------------ None Game ------ Seed TimingUltimateBasin Manual? 0 Play Time 02:43:05 Cumulative 945.2 hours Start 2026.02.27 @ 17:38:03 End 2026.03.01 @ 09:31:17 Sessions 5 Manual Loads 0 Difficulty Rogue Special Mode None Game No. 363 Rogue 363 Adventurer 0 Explorer 0 Win Type - Total 98 Types 46/6/17/9/8/1/2/3/1/5 Lore% 98 Gallery% 88 Achievement% 87 Wizard Run 0 Options --------- Layout 1 ASCII 0 Keyboard 0 Movement Numpad Keybinds 0 Fullscreen 1 Font 24/Smallcaps Map View 50x35 Zoom Use 0% Tactical HUD 1 Map Filters NONE Filters NONE Steam 1 RUN: 71a1fa29-4960-4ffd-84dc-8b3e957ac451